Department Family,Entity,Date,Expenses Type,Expense Area,Supplier,Transaction Number,  Total  ,
Department of Health,The Christie NHS Foundation Trust,21/01/2021,Maintenance Contract,Clin Support & Spec Surgery,GE MEDICAL SYSTEMS LIMITED,0000656439," 36,467.73 ",
Department of Health,The Christie NHS Foundation Trust,28/01/2021,Q3 Clinical Nurse Specialist Recharge,Clin Support & Spec Surgery,MANCHESTER UNIVERSITY NHS FT,0000657911," 28,212.00 ",
Department of Health,The Christie NHS Foundation Trust,07/01/2021,Supply Chain Support,Clin Support & Spec Surgery,NHS NORTH OF ENGLAND CSU,0000657242," 74,439.00 ",
Department of Health,The Christie NHS Foundation Trust,14/01/2021,Service Agreement,Clin Support & Spec Surgery,SIEMENS HEALTHCARE LIMITED,0000658467," 48,379.88 ",
Department of Health,The Christie NHS Foundation Trust,21/01/2021,Drugs,Drugs,ALCURA UK LIMITED,0000659670," 55,337.25 ",
Department of Health,The Christie NHS Foundation Trust,14/01/2021,Drugs,Drugs,BAXTER HEALTHCARE LTD,0000658106," 119,184.31 ",
Department of Health,The Christie NHS Foundation Trust,14/01/2021,Drugs,Drugs,BAXTER HEALTHCARE LTD,0000658107," 126,960.90 ",
Department of Health,The Christie NHS Foundation Trust,14/01/2021,Drugs,Drugs,BAXTER HEALTHCARE LTD,0000658111," 133,189.93 ",
Department of Health,The Christie NHS Foundation Trust,14/01/2021,Drugs,Drugs,BAXTER HEALTHCARE LTD,0000658113," 124,875.11 ",
Department of Health,The Christie NHS Foundation Trust,14/01/2021,Drugs,Drugs,BAXTER HEALTHCARE LTD,0000658117," 89,008.03 ",
Department of Health,The Christie NHS Foundation Trust,14/01/2021,Drugs,Drugs,BAXTER HEALTHCARE LTD,0000658119," 109,088.28 ",
Department of Health,The Christie NHS Foundation Trust,21/01/2021,Drugs,Drugs,BAXTER HEALTHCARE LTD,0000658122," 77,054.04 ",
Department of Health,The Christie NHS Foundation Trust,21/01/2021,Drugs,Drugs,BAXTER HEALTHCARE LTD,0000658125," 358,835.89 ",
Department of Health,The Christie NHS Foundation Trust,28/01/2021,Drugs,Drugs,BAXTER HEALTHCARE LTD,0000658126," 106,961.57 ",
Department of Health,The Christie NHS Foundation Trust,28/01/2021,Drugs,Drugs,BAXTER HEALTHCARE LTD,0000660268," 355,904.40 ",
Department of Health,The Christie NHS Foundation Trust,28/01/2021,Drugs,Drugs,BAXTER HEALTHCARE LTD,0000658127," 199,765.70 ",
Department of Health,The Christie NHS Foundation Trust,28/01/2021,Drugs,Drugs,BAXTER HEALTHCARE LTD,0000658290," 86,399.04 ",
Department of Health,The Christie NHS Foundation Trust,07/01/2021,Drugs,Drugs,BAXTER HEALTHCARE LTD,0000657278," 111,823.18 ",
Department of Health,The Christie NHS Foundation Trust,07/01/2021,Drugs,Drugs,BAXTER HEALTHCARE LTD,0000657279," 110,699.29 ",
Department of Health,The Christie NHS Foundation Trust,07/01/2021,Drugs,Drugs,BAXTER HEALTHCARE LTD,0000657280," 106,368.02 ",
Department of Health,The Christie NHS Foundation Trust,07/01/2021,Drugs,Drugs,BAXTER HEALTHCARE LTD,0000657357," 116,450.52 ",
Department of Health,The Christie NHS Foundation Trust,07/01/2021,Drugs,Drugs,BAXTER HEALTHCARE LTD,0000656874," 125,934.71 ",
Department of Health,The Christie NHS Foundation Trust,07/01/2021,Drugs,Drugs,BAXTER HEALTHCARE LTD,0000657281," 132,953.70 ",
Department of Health,The Christie NHS Foundation Trust,13/01/2021,Drugs,Drugs,DD BAXTER HEALTHCARE LTD,0000659449," 45,240.00 ",
Department of Health,The Christie NHS Foundation Trust,04/01/2021,Drugs,Drugs,DD BAXTER HEALTHCARE LTD,0000658264," 351,380.40 ",
Department of Health,The Christie NHS Foundation Trust,28/01/2021,Drugs,Drugs,HEALTHCARE AT HOME LTD,0000660087," 39,889.00 ",
Department of Health,The Christie NHS Foundation Trust,14/01/2021,Drugs,Drugs,NOVARTIS PHARMACEUTICALS UK LTD,0000658502," 257,184.00 ",
Department of Health,The Christie NHS Foundation Trust,14/01/2021,Drugs,Drugs,NOVARTIS PHARMACEUTICALS UK LTD,0000657921," 257,184.00 ",
Department of Health,The Christie NHS Foundation Trust,14/01/2021,Drugs,Drugs,THE CHRISTIE CLINIC (HCA),0000658155," 31,033.00 ",
Department of Health,The Christie NHS Foundation Trust,14/01/2021,Drugs,Drugs,THE CHRISTIE CLINIC (HCA),0000658164," 36,608.92 ",
Department of Health,The Christie NHS Foundation Trust,15/01/2021,Blood Products,Network Services,DD NHS BLOOD AND TRANSPLANT,0000657443," 188,268.30 ",
Department of Health,The Christie NHS Foundation Trust,21/01/2021,SLA Contract Charge,Network Services,EAST CHESHIRE NHS TRUST,0000653676," 276,310.00 ",
Department of Health,The Christie NHS Foundation Trust,21/01/2021,Electricity Bill - December 2020,Network Services,EDF ENERGY,0000659435," 36,684.64 ",
Department of Health,The Christie NHS Foundation Trust,21/01/2021,Electricity Bill - December 2020,Network Services,EDF ENERGY,0000659434," 57,634.38 ",
Department of Health,The Christie NHS Foundation Trust,14/01/2021,Medical Equipment,Network Services,GILEAD SCIENCES LTD,0000656315," 224,360.80 ",
Department of Health,The Christie NHS Foundation Trust,21/01/2021,Q3 Paediatric Anaesthetic Services,Network Services,MANCHESTER UNIVERSITY NHS FT,0000657994," 84,999.00 ",
Department of Health,The Christie NHS Foundation Trust,21/01/2021,Q3 Paediatric Anaesthetic Services,Network Services,MANCHESTER UNIVERSITY NHS FT,0000657995," 82,464.00 ",
Department of Health,The Christie NHS Foundation Trust,28/01/2021,Medical Equipment,Network Services,PHILIPS HEALTHCARE,0000659023," 170,000.00 ",
Department of Health,The Christie NHS Foundation Trust,21/01/2021,Hotel,Network Services,STAYCITY MANCHESTER LTD,0000657342," 100,382.63 ",
Department of Health,The Christie NHS Foundation Trust,21/01/2021,Clinical Activity Charge,Network Services,WRIGHTINGTON WIGAN AND LEIGH NHS FT,0000657920," 833,073.21 ",
Department of Health,The Christie NHS Foundation Trust,14/01/2021,Management Services - November 2020,Christie Pathology Partner,CPP FACILITIES LLP,0000658539," 226,189.26 ",
Department of Health,The Christie NHS Foundation Trust,28/01/2021,Pathology Testing Services - February 2021,Christie Pathology Partner,THE CHRISTIE PATHOLOGY PARTNERSHIP LLP,0000659313," 379,726.40 ",
Department of Health,The Christie NHS Foundation Trust,14/01/2021,Pathology Testing Services - November 2020,Christie Pathology Partner,THE CHRISTIE PATHOLOGY PARTNERSHIP LLP,0000658537," 475,950.80 ",
Department of Health,The Christie NHS Foundation Trust,15/01/2021,"CNST, LTPS & PES - January 2020 ",Quality & Standards,DD NHS LITIGATION AUTHORITY,0000659384," 152,873.05 ",
Department of Health,The Christie NHS Foundation Trust,07/01/2021,Council Tax , Estates & Facilities,DD M/CR CITY COUNCIL (RATES),0000659407," 76,643.00 ",
Department of Health,The Christie NHS Foundation Trust,21/01/2021,Water Bill - December 2020, Estates & Facilities,WATER PLUS,0000658750," 47,174.44 ",
Department of Health,The Christie NHS Foundation Trust,21/01/2021,Patient Charges, Other Income Levies and Gra,THE CHRISTIE CLINIC (HCA),0000659386," 156,948.46 ",
Department of Health,The Christie NHS Foundation Trust,21/01/2021,Patient Charges, Other Income Levies and Gra,THE CHRISTIE CLINIC (HCA),0000653998," 95,120.96 ",
Department of Health,The Christie NHS Foundation Trust,21/01/2021,Patient Charges, Other Income Levies and Gra,THE CHRISTIE CLINIC (HCA),0000658754," 127,670.00 ",
Department of Health,The Christie NHS Foundation Trust,21/01/2021,Patient Charges, Other Income Levies and Gra,THE CHRISTIE CLINIC (HCA),0000659385," 142,207.00 ",
Department of Health,The Christie NHS Foundation Trust,28/01/2021,PET-CT Scans,Christie Medical Physics,ALLIANCE MEDICAL LTD,0000659090," 192,385.00 ",
Department of Health,The Christie NHS Foundation Trust,14/01/2021,PET-CT Adhoc Charges - September 2020,Christie Medical Physics,ALLIANCE MEDICAL LTD,0000657836," 31,530.00 ",
Department of Health,The Christie NHS Foundation Trust,14/01/2021,PET-CT Adhoc Charges - October 2020,Christie Medical Physics,ALLIANCE MEDICAL LTD,0000657835," 38,550.00 ",
Department of Health,The Christie NHS Foundation Trust,07/01/2021,Drugs,Christie Medical Physics,ALLIANCE MEDICAL RADIOPHARMACY LIMITED,0000657840," 26,863.98 ",
Department of Health,The Christie NHS Foundation Trust,28/01/2021,Medical Equipment,Capital,BECTON DICKINSON (CME) UK LIMITED,0000657549," 53,298.00 ",
Department of Health,The Christie NHS Foundation Trust,21/01/2021,System Support,Capital,INSIGHT DIRECT (UK) LTD,0000659114," 135,767.23 ",
Department of Health,The Christie NHS Foundation Trust,21/01/2021,The Paterson Redevelopment Project,Capital,INTEGRATED HEALTH PROJECTS,0000659123," 1,769,263.10 ",
Department of Health,The Christie NHS Foundation Trust,07/01/2021,Air Handling Unit,Capital,MEDWAY HEATING BOLTON LTD,0000657748," 36,884.92 ",
Department of Health,The Christie NHS Foundation Trust,28/01/2021,Medical Software,Capital,TECHNIDATA UK,0000658743," 36,758.40 ",
Department of Health,The Christie NHS Foundation Trust,07/01/2021,Construction Works,Capital,VINCI CONSTRUCTION UK LIMITED,0000657989," 622,755.60 ",
Department of Health,The Christie NHS Foundation Trust,21/01/2021,Medical Equipment,Capital,XIEL LTD,0000659303," 57,844.35 ",
Department of Health,The Christie NHS Foundation Trust,21/01/2021,Printer Ink ,Digital Services,APOGEE CORPORATION LTD,0000656356," 37,543.71 ",
Department of Health,The Christie NHS Foundation Trust,28/01/2021,Online Annual Software Subscription,Digital Services,IQ HEALTH TECH LTD,0000658992," 32,500.00 ",
Department of Health,The Christie NHS Foundation Trust,28/01/2021,Medical Software,Digital Services,SOFTCAT PLC,0000655626," 32,038.10 ",
Department of Health,The Christie NHS Foundation Trust,28/01/2021,Project Management Services,COVID-19,MAX 20 PROJECT SOLUTIONS LTD,0000659666," 31,500.00 ",
Department of Health,The Christie NHS Foundation Trust,07/01/2021,All Wards & Departments,The Christie NHS FT Balance,NHS SUPPLY CHAIN,0000657901," 62,416.55 ",
